bitfinex/quotes_ETHUSD_20250715
["timestamp","ask_amount","ask_price","bid_price","bid_amount"]
[1752615642763,0.1644,3074.2,3074.1,5.242]
[1752615643089,0.1644,3074.2,3074.1,5.6962]
[1752615644685,0.002,3074.2,3074.1,9.92370903]
[1752615644848,0.1624,3075.2,3074.3,3.25277298]
[1752615645052,0.1624,3075.6,3075.3,3.25170205]
[1752615645248,0.1624,3075.6,3075.4,8.49360954]
[1752615645467,0.1624,3075.6,3075.4,0.2979495]
[1752615645653,3.25144361,3075.6,3075.4,5.5399495]
[1752615645859,3.45132514,3075.5,3075.4,5.5399495]
[1752615646092,0.19982132,3075.5,3075.4,5.5399495]
[1752615646252,0.1644,3075.5,3075.4,6.0094495]
[1752615646858,0.1644,3075.5,3075.4,5.7115]
[1752615647056,0.1644,3075.5,3075.4,6.00923232]
[1752615647988,0.1644,3075.5,3075.4,5.7115]
[1752615648189,3.41590382,3075.5,3075.4,5.7115]
[1752615649699,4.08618037,3075.5,3075.4,5.241]
[1752615650605,4.12160169,3075.5,3075.4,5.241]
[1752615652071,4.08618037,3075.5,3075.4,5.241]
[1752615652271,3.25171527,3075.3,3075.2,5.239]
[1752615652490,3.28713659,3075.3,3075.2,5.239]
[1752615653714,3.25202509,3075.1,3074.4,1.4299]
[1752615653863,3.25237957,3074.7,3074.6,5.239]
[1752615654063,3.41477957,3074.7,3074.6,5.239]
[1752615654372,3.25256139,3074.5,3074.4,0.4695]
[1752615654574,3.25256139,3074.5,3074.4,5.239]
[1752615655269,0.1624,3074.5,3074.4,5.239]
[1752615656520,3.41496139,3074.5,3074.4,5.239]
[1752615657867,0.1624,3074.5,3074.4,5.239]
[1752615658498,3.41499316,3074.5,3074.4,5.239]
[1752615658704,3.25266718,3074.4,3073.9,0.03253196]
[1752615658870,0.1624,3074.2,3074.0,5.239]
[1752615659065,3.2530008,3074.1,3074.0,5.239]
[1752615659271,0.1624,3074.1,3074.0,5.239]
[1752615659680,3.41538461,3074.1,3074.0,5.7085]
[1752615659879,3.41538461,3074.1,3074.0,5.239]
[1752615660843,0.1624,3074.1,3074.0,5.239]
[1752615661145,0.1624,3074.1,3074.0,5.7085]
[1752615662938,0.8139,3075.3,3074.1,0.55]
[1752615663245,0.1624,3075.0,3074.6,3.25238112]
[1752615663442,0.1624,3075.0,3074.7,5.7085]
[1752615663616,0.1624,3075.0,3074.7,8.96083064]
[1752615663811,0.03542132,3075.2,3074.8,4.51523915]
[1752615664011,3.44964334,3075.2,3074.9,0.4695]
[1752615664333,3.4497338,3075.2,3075.0,5.6953]
[1752615665158,3.25192676,3075.1,3075.0,5.6953]
[1752615666822,3.25192676,3075.1,3075.0,5.2258]
[1752615668137,3.25192676,3075.1,3075.0,5.6953]
[1752615668710,0.67034856,3075.1,3075.0,5.238]
[1752615668917,3.25193466,3075.1,3075.0,5.238]
[1752615669232,0.1624,3075.0,3074.4,0.03252667]
[1752615669432,0.1624,3074.8,3074.5,5.7065]
[1752615669630,0.1624,3074.8,3074.6,0.4695]
[1752615669838,0.1624,3074.8,3074.5,5.237]
[1752615670038,0.1624,3074.8,3074.7,0.4695]
[1752615670235,3.41464404,3074.8,3074.7,0.4695]
[1752615670875,0.1624,3074.8,3074.7,0.4695]
[1752615671029,0.1624,3075.1,3074.7,1.04015]
[1752615671361,3.41438074,3075.1,3074.8,5.7065]
[1752615672157,3.28748236,3075.0,3074.8,5.7065]
[1752615672459,3.25206104,3075.0,3074.8,5.7065]
[1752615673423,3.25213828,3074.9,3074.8,5.7065]
[1752615673622,3.25205214,3075.0,3074.8,5.7065]
[1752615674344,3.44981381,3075.1,3074.8,5.7065]
[1752615674657,0.002,3075.3,3075.0,0.55]
[1752615674823,0.002,3075.3,3075.2,3.41422101]
[1752615675020,0.002,3075.3,3075.2,4.24653922]
[1752615675250,0.002,3075.3,3075.2,4.69883922]
[1752615675436,0.002,3075.3,3075.2,6.07251582]
[1752615677966,0.002,3075.3,3075.2,6.31320437]
[1752615678553,0.002,3075.3,3075.2,4.69883922]
[1752615679368,0.002,3075.3,3075.2,4.66632101]
[1752615679776,0.002,3075.3,3075.2,4.69883922]
[1752615683693,1e-08,3075.4,3075.2,18.91759564]
[1752615683840,0.002,3076.6,3076.5,4.56664693]
[1752615684046,0.002,3077.2,3076.5,4.56664693]
[1752615684047,0.002,3077.2,3077.1,3.79981313]
[1752615684241,0.002,3077.2,3077.1,9.44391126]
[1752615684570,0.002,3077.2,3077.1,0.1624]
[1752615684878,0.03742132,3077.2,3077.1,5.233]
[1752615685065,3.25173387,3077.2,3077.1,5.233]
[1752615685266,0.03742132,3077.2,3076.6,1.47300341]
[1752615685466,0.03742132,3077.2,3074.9,3.25208404]
[1752615685467,0.1624,3076.6,3075.8,0.4523]
[1752615685783,3.25105352,3076.0,3075.9,5.233]
[1752615686288,0.1624,3076.2,3075.9,5.233]
[1752615686458,0.03542132,3076.4,3075.9,5.233]
[1752615686459,0.84662132,3077.0,3076.0,3.70321285]
[1752615686655,3.25043509,3076.6,3076.1,5.42590869]
[1752615687069,3.25043509,3076.6,3076.2,0.4523]
[1752615687288,0.002,3076.6,3076.3,5.6833]
[1752615687493,0.002,3076.6,3076.4,0.4523]
[1752615687701,0.002,3076.6,3076.5,5.231]
[1752615687857,0.002,3076.6,3076.5,5.6833]
[1752615688757,3.25234128,3076.6,3076.5,5.6833]
[1752615690291,3.25234128,3076.6,3076.5,5.231]
[1752615692208,3.92238112,3076.6,3076.5,5.231]
[1752615692706,3.95780244,3076.6,3076.5,5.231]
[1752615692912,3.25044693,3076.5,3075.8,0.19491186]
[1752615693083,3.25091908,3076.1,3075.9,5.23]
[1752615693296,3.25097529,3076.0,3075.9,5.23]
[1752615693629,3.25151822,3075.5,3075.3,0.7893]
[1752615693832,3.25171527,3075.3,3075.2,0.1624]
[1752615694032,3.25182101,3075.2,3075.1,0.04]
[1752615694193,3.25171527,3075.3,3075.2,5.23]
[1752615694371,3.25171527,3075.3,3074.0,0.001]
[1752615694372,3.25287879,3074.2,3074.0,0.001]
[1752615694578,4.16567879,3074.2,3074.0,0.001]
[1752615694924,0.7504,3075.2,3074.0,5.2635309]
[1752615695071,0.4558,3075.5,3074.0,5.2635309]
[1752615695072,0.1624,3075.3,3074.8,3.2521583]
[1752615695271,3.25156521,3075.5,3074.9,5.26252138]
[1752615695597,0.1624,3075.4,3075.0,5.23]
[1752615696318,0.1624,3075.8,3075.3,0.1624]
[1752615696504,8.93630738,3076.5,3075.0,4.01295321]
[1752615696505,0.49122132,3075.7,3075.0,5.229]
[1752615696836,4.00227983,3075.2,3075.0,5.229]
[1752615696990,4.0019369,3075.5,3075.0,5.229]
[1752615697319,3.25162828,3075.4,3075.0,5.229]
[1752615698828,3.2517173,3075.3,3075.0,5.229]
[1752615699419,3.28706309,3075.4,3075.0,5.229]
[1752615700426,4.01595155,3075.4,3075.0,5.229]
[1752615701206,0.76430978,3075.4,3075.0,5.229]
[1752615701605,0.7651,3075.9,3075.1,3.7041736]
[1752615701826,0.03542132,3076.1,3075.5,3.25142111]
[1752615701992,3.28629337,3076.1,3075.6,5.23]
[1752615702193,0.68911736,3076.1,3075.6,8.48138227]
[1752615702505,0.7651,3076.5,3076.0,3.25092643]
[1752615702703,0.002,3076.6,3076.1,8.51235343]
[1752615703029,0.002,3076.6,3076.2,3.73555591]
[1752615703330,0.002,3076.6,3076.3,0.03250658]
[1752615703640,0.002,3076.6,3076.4,5.229]
[1752615704548,0.002,3076.6,3076.5,1.2842]
[1752615704703,0.002,3076.6,3076.5,5.11715139]
[1752615705242,0.002,3076.6,3076.5,9.79615139]
[1752615705438,0.002,3076.6,3076.5,5.229]
[1752615705823,0.002,3076.6,3076.5,5.7007]
[1752615706114,0.002,3076.6,3076.5,9.52446748]
[1752615706532,0.002,3076.6,3076.5,5.229]
[1752615706899,0.002,3076.6,3076.5,5.7007]
[1752615707931,0.002,3076.6,3076.5,8.95114693]
[1752615708096,0.002,3076.6,3076.5,9.11354693]
[1752615708933,0.002,3076.6,3076.5,9.66354693]
[1752615709136,0.002,3076.6,3076.5,11.28001242]
[1752615713900,0.002,3076.6,3076.5,10.73001242]
[1752615714100,0.002,3076.6,3076.5,9.11354693]
[1752615716621,0.002,3076.6,3076.5,5.8631]
[1752615716821,0.002,3076.6,3076.5,5.89560446]
[1752615717250,0.002,3076.6,3076.5,5.8631]
[1752615717405,0.002,3076.6,3076.5,5.89560446]
[1752615717736,0.002,3076.6,3076.5,0.19490446]
[1752615717923,0.002,3076.6,3076.5,5.227]
[1752615718105,3.2523852,3076.6,3076.5,5.226]
[1752615718303,3.9940947,3076.6,3076.5,5.226]
[1752615718499,4.6233947,3076.6,3076.5,5.226]
[1752615718698,4.6233947,3076.6,3076.2,5.226]
[1752615718699,1.3730095,3076.6,3076.2,5.226]
[1752615718932,3.25065825,3076.3,3076.2,5.226]
[1752615719230,3.71755825,3076.3,3076.2,5.226]
[1752615719432,3.2509133,3076.1,3075.6,0.1624]
[1752615719619,3.28633462,3076.1,3075.8,5.226]
[1752615719913,3.44863442,3076.2,3075.8,5.226]
[1752615720315,3.25090858,3076.1,3075.8,5.226]
[1752615720607,3.25108098,3075.9,3075.8,5.226]
[1752615721122,3.25161566,3075.4,3075.2,0.001]
[1752615721305,0.1624,3075.4,3075.3,5.226]
[1752615721501,0.1624,3075.6,3075.3,5.226]
[1752615722187,0.1624,3076.5,3075.5,0.7124]
[1752615722307,0.002,3076.6,3076.5,3.25044693]
[1752615722507,0.002,3076.6,3076.5,9.14305139]
[1752615722706,0.002,3076.6,3076.5,9.11054693]
[1752615729348,0.002,3076.6,3076.5,23.32930335]
[1752615729523,1e-08,3076.6,3076.5,24.11700335]
[1752615729728,1e-08,3076.6,3076.5,27.20283848]
[1752615732339,1e-08,3076.6,3076.5,21.97683848]
[1752615732541,1e-08,3076.6,3076.5,16.53208206]
[1752615733045,1e-08,3076.6,3076.5,15.98208206]
[1752615733844,1e-08,3076.6,3076.5,16.53208206]
[1752615734334,1e-08,3076.6,3076.5,27.20083848]
[1752615737520,0.002,3077.2,3077.1,3.79981313]
[1752615737718,0.002,3077.2,3077.1,23.71186768]
[1752615737937,0.002,3077.2,3077.1,24.12156955]
[1752615738659,0.002,3077.2,3077.1,13.01061313]
[1752615739049,0.002,3077.2,3077.1,13.45281313]
[1752615739222,0.002,3077.2,3077.1,16.18996196]
[1752615740652,0.002,3077.2,3077.1,14.92236196]
[1752615743174,0.002,3077.2,3077.1,15.36456196]
[1752615743737,0.002,3077.2,3077.1,16.16146196]
[1752615743937,0.042,3077.9,3077.8,4.59597401]
[1752615744250,0.042,3077.9,3077.8,8.57537984]
[1752615744456,0.042,3077.9,3077.8,14.2060891]
[1752615746837,0.042,3077.9,3077.8,8.9850891]
[1752615747039,0.042,3077.9,3077.8,14.2060891]
[1752615747278,0.042,3077.9,3077.8,12.4169891]
[1752615747484,0.042,3077.9,3077.8,9.16791509]
[1752615747659,0.042,3077.9,3077.8,0.7124]
[1752615747861,0.042,3077.9,3077.8,0.1624]
[1752615748191,3.29096845,3077.9,3077.8,5.3824]
[1752615749072,3.2491846,3077.7,3077.5,7.802]
[1752615749257,4.47348515,3077.6,3077.5,7.9644]
[1752615749451,0.7882,3077.6,3077.5,13.1844]
[1752615750496,0.7882,3077.6,3077.5,7.9644]
[1752615750788,0.7882,3077.6,3077.5,13.1844]
[1752615751486,0.478,3077.9,3077.5,13.1844]
[1752615751487,3.29097537,3077.9,3077.5,14.82778322]
[1752615751654,3.24908681,3077.8,3077.6,0.03249285]
[1752615751855,0.436,3077.8,3077.7,5.22]
[1752615752854,3.68507401,3077.8,3077.7,5.22]
[1752615753060,0.436,3077.8,3077.7,5.22]
[1752615753259,0.436,3077.8,3077.6,0.03249285]
[1752615753560,3.29100436,3077.9,3077.7,5.22]
[1752615753561,3.29098183,3077.9,3077.7,5.22]
[1752615754391,3.29098183,3077.9,3077.8,5.219]
[1752615754813,0.042,3077.9,3077.8,5.219]
[1752615755353,0.478,3077.9,3077.8,5.219]
[1752615755755,0.042,3077.9,3077.8,5.219]
[1752615756071,0.042,3077.9,3077.8,5.41389074]
[1752615756494,0.042,3077.9,3077.8,8.66296475]
[1752615756664,0.042,3077.9,3077.8,8.63047401]
[1752615758114,0.042,3077.9,3077.8,5.3814]
[1752615758268,0.042,3077.9,3077.8,8.66296475]
[1752615758471,0.042,3077.9,3077.8,8.63047401]
[1752615758670,0.042,3077.9,3077.8,5.3814]
[1752615758874,0.042,3077.9,3077.8,8.63047401]
[1752615759569,0.042,3077.9,3077.8,9.81843882]
[1752615761626,0.042,3077.9,3077.8,10.26063882]
[1752615763617,0.042,3077.9,3077.8,10.81063882]
[1752615765500,1e-08,3077.9,3077.8,25.10219524]
[1752615767245,1e-08,3077.9,3077.8,14.43143882]
[1752615767456,1e-08,3077.9,3077.8,14.43043882]
[1752615769039,1e-08,3078.2,3078.1,3.79875735]
[1752615769243,1e-08,3078.2,3078.1,12.80694492]
[1752615769565,1e-08,3078.2,3078.1,13.21145735]
[1752615772934,1e-08,3078.2,3078.1,13.45560971]
[1752615775262,0.04,3079.9,3078.9,1.3604]
[1752615775489,0.04,3079.9,3079.8,3.40856408]
[1752615775693,0.04,3079.9,3079.8,8.65503372]
[1752615775900,0.04,3079.9,3079.8,8.62156408]
[1752615776515,0.1666,3080.6,3080.5,4.05662626]
[1752615776516,0.005,3080.6,3080.5,4.05662626]
[1752615776669,0.005,3080.6,3080.5,8.45922626]
[1752615777612,0.005,3080.6,3080.5,12.00922626]
[1752615777792,1e-08,3080.6,3080.5,12.81962626]
[1752615777990,1e-08,3080.6,3080.5,13.25662626]
[1752615778293,1e-08,3080.6,3080.5,14.68156512]
[1752615778474,1e-08,3080.6,3080.5,15.23156512]
[1752615779101,0.04,3081.9,3081.8,3.7948569]
[1752615779260,0.04,3081.9,3081.3,3.0]
[1752615779261,0.8284,3081.9,3081.3,3.0]
[1752615779460,0.8284,3081.9,3081.2,0.8104]
[1752615779461,3.24503871,3081.7,3081.4,5.217]
[1752615779664,3.24503871,3081.7,3081.0,3.79563133]
[1752615779665,3.2450501,3081.7,3081.5,5.217]
[1752615779916,0.4586,3081.6,3081.1,0.03245594]
[1752615780066,0.4586,3081.6,3080.5,8.6084]
[1752615780067,3.24620394,3080.6,3079.8,5.56915328]
[1752615780266,3.70473804,3080.6,3079.9,5.218]
[1752615780513,3.24633164,3080.4,3079.9,5.218]
[1752615780715,4.03487854,3080.3,3079.9,5.218]
[1752615780879,0.7884,3080.3,3079.9,5.218]
[1752615781084,0.49402132,3080.2,3079.4,7.798]
[1752615781303,3.24667141,3080.1,3079.5,5.2484728]
[1752615781868,3.24667141,3080.1,3079.5,0.0324728]
[1752615782596,3.24676224,3080.0,3079.6,5.213]
[1752615782792,3.24676224,3080.0,3079.5,5.213]
[1752615782992,0.4586,3079.9,3079.5,5.213]
[1752615783191,0.4586,3079.9,3079.5,5.2454728]
[1752615783404,0.4883175,3080.2,3079.5,5.2454728]
[1752615783405,3.69943872,3080.2,3079.5,5.2454728]
[1752615783602,3.24665683,3080.1,3079.5,5.2454728]
[1752615784117,0.82382132,3080.3,3079.6,0.55]
[1752615784288,0.4586,3080.5,3080.2,3.24643841]
[1752615784463,0.7884,3080.6,3080.2,3.24643841]
[1752615784464,0.7884,3080.6,3080.3,0.03246437]
[1752615784667,1.2505,3082.3,3081.6,3.24506749]
[1752615784906,3.24443655,3082.2,3081.5,3.24514208]
[1752615785207,3.24454186,3082.1,3081.6,0.03245067]
[1752615785996,3.24464991,3082.0,3081.5,0.03245172]
[1752615786178,3.24457737,3082.1,3081.5,0.03245172]
[1752615786606,3.24445554,3082.2,3081.8,0.1616]
[1752615786768,0.98892132,3082.3,3081.8,0.1616]
[1752615786968,0.98892132,3082.3,3081.5,0.03245172]
[1752615786969,3.74335161,3081.9,3081.2,8.46542019]
[1752615787169,3.24504544,3081.7,3081.2,5.22]
[1752615787509,0.4586,3081.7,3081.3,0.19405383]
[1752615788073,4.03697974,3081.6,3081.3,0.19405383]
[1752615788271,3.70377482,3081.5,3081.3,0.1616]
[1752615788517,3.70377482,3081.5,3081.1,0.03245594]
[1752615788720,4.4975407,3081.5,3081.1,0.03245594]
[1752615789219,4.49757932,3081.5,3081.1,0.03245594]
[1752615789520,0.4586,3081.4,3081.1,0.03245594]
[1752615791390,0.4586,3081.3,3081.1,0.03245594]
[1752615791781,3.24521344,3081.5,3081.1,0.03245594]
[1752615792070,3.24525054,3081.5,3081.1,0.03245594]
[1752615792291,3.70385054,3081.5,3081.1,0.03245594]
[1752615792496,0.92787719,3081.5,3081.1,0.03245594]
[1752615792697,0.9535,3081.6,3080.8,5.213]
[1752615792698,3.2455941,3081.1,3080.8,5.213]
[1752615792921,0.03542132,3081.2,3080.8,5.213]
[1752615793125,0.4586,3081.1,3080.8,5.213]
[1752615793435,0.19702132,3081.2,3080.8,5.213]
[1752615793588,0.4586,3081.0,3080.8,5.213]
[1752615793789,3.24580479,3080.9,3080.8,5.213]
[1752615793997,3.40710439,3081.2,3080.8,5.213]
[1752615794282,3.24575875,3081.0,3080.8,5.213]
[1752615794618,3.24563826,3081.1,3080.8,5.213]
[1752615794831,3.86577099,3081.2,3080.8,5.213]
[1752615794832,3.24571267,3081.0,3080.8,5.213]
[1752615795024,3.86577099,3081.2,3080.8,5.213]
[1752615795536,3.2456104,3081.1,3080.8,5.213]
[1752615795827,3.2456104,3081.1,3080.7,0.19406015]
[1752615796032,3.24577801,3081.0,3080.4,0.03246331]
[1752615796294,3.24577801,3081.0,3080.4,4.22887412]
[1752615797438,3.24577801,3081.0,3080.5,5.209]
[1752615797641,3.24577801,3081.0,3080.6,0.0324612]
[1752615798142,3.24564635,3081.1,3080.6,0.0324612]
[1752615799713,3.71484635,3081.1,3080.6,0.0324612]
[1752615800340,4.03703436,3081.6,3080.8,3.24588315]
[1752615800539,4.03703436,3081.6,3080.9,8.48726283]
[1752615800740,4.03703436,3081.6,3081.0,3.24568758]
[1752615800940,3.24517881,3081.5,3081.1,0.03245594]
[1752615801145,0.4692,3081.5,3081.1,0.03245594]
[1752615801362,3.24522584,3081.5,3081.1,0.03245594]
[1752615801718,0.7919,3081.6,3081.1,0.03245594]
[1752615802018,4.03699989,3081.6,3081.1,3.24557786]
[1752615802218,4.03699989,3081.6,3081.2,0.03245488]
[1752615802432,1.2611,3081.6,3081.2,3.27790401]
[1752615802615,4.50617169,3081.6,3081.2,0.03245488]
[1752615802930,3.24488202,3081.8,3081.3,3.2453329]
[1752615803255,3.71408202,3081.8,3081.3,3.2453329]
[1752615804361,0.8418,3081.9,3081.5,3.24514757]
[1752615804661,1.311,3081.9,3081.6,0.03245067]
[1752615804867,0.04,3081.9,3081.6,0.03245067]
[1752615805066,0.04,3081.9,3081.6,3.27747542]
[1752615805747,0.04,3081.9,3081.6,3.70757542]
[1752615805941,0.04,3081.9,3081.6,0.19405067]
[1752615806482,0.04,3081.9,3081.6,3.43910118]
[1752615809786,0.04,3081.9,3081.6,0.19405067]
[1752615809990,0.5092,3081.9,3081.6,0.19405067]
[1752615810349,0.5092,3081.9,3081.6,0.1616]
[1752615810547,0.4692,3081.8,3081.6,0.1616]
[1752615811087,0.04,3081.9,3081.8,3.2448569]
[1752615811460,0.04,3081.9,3081.8,3.27730546]
[1752615813279,0.04,3081.9,3081.8,0.03244856]
[1752615816398,0.04,3081.9,3081.8,3.27730546]
[1752615816703,0.04,3081.9,3081.8,5.25670023]
[1752615816890,0.04,3081.9,3081.8,5.84840023]
[1752615818205,0.04,3081.9,3081.8,6.08949974]
[1752615819406,0.04,3081.9,3081.8,6.63949974]
[1752615820668,0.04,3081.9,3081.8,6.60705118]
[1752615820867,0.04,3081.9,3081.8,11.81305118]
[1752615822520,0.04,3081.9,3081.8,14.81305118]
[1752615822883,0.04,3081.9,3081.8,14.26305118]
[1752615823086,0.04,3081.9,3081.8,11.26305118]
[1752615823692,0.04,3081.9,3081.8,11.81305118]
[1752615824919,0.04,3081.9,3081.8,11.26305118]
[1752615826822,0.042,3081.9,3081.8,11.26305118]
[1752615827328,0.042,3081.9,3081.8,10.04265118]
[1752615827733,0.042,3081.9,3081.8,10.48395118]
[1752615828192,0.042,3081.9,3081.8,11.24965118]
[1752615828397,0.042,3081.9,3081.8,11.79965118]
[1752615830724,0.04,3082.9,3082.8,3.24380433]
[1752615830932,0.04,3082.9,3082.8,8.60840433]
[1752615831239,0.04,3082.9,3082.8,10.5775354]
[1752615831414,0.04,3082.9,3082.8,11.0188354]
[1752615831619,0.04,3082.9,3082.8,10.5775354]
[1752615832205,0.04,3082.9,3082.8,11.0188354]
[1752615833436,0.04,3083.9,3083.5,0.7715]
[1752615833637,0.04,3083.9,3083.6,9.61666029]
[1752615833843,0.04,3083.9,3083.8,3.24275244]
[1752615834004,0.04,3083.9,3083.8,8.47717996]
[1752615834204,0.04,3083.9,3083.8,8.99475244]
[1752615834537,0.04,3083.9,3083.8,8.74007762]
[1752615834837,0.04,3083.9,3083.8,5.49732518]
[1752615835042,0.04,3083.9,3083.8,5.23442752]
[1752615835253,0.04,3083.9,3083.8,9.32243944]
[1752615835405,0.04,3083.9,3083.8,9.29001192]
[1752615835605,0.04,3083.9,3083.8,8.99475244]
[1752615835827,0.04,3083.9,3083.8,9.28968959]
[1752615836032,0.04,3083.9,3083.8,12.11626076]
[1752615838119,0.04,3083.9,3083.8,12.11557592]
[1752615838722,0.04,3083.9,3083.8,22.73755085]
[1752615838949,0.03,3084.9,3084.5,3.24201581]
[1752615839246,0.03,3084.9,3084.8,3.24170124]
[1752615839433,0.03,3084.9,3084.8,8.76837056]
[1752615839617,0.03,3084.9,3084.8,8.73595355]
[1752615840320,0.4628,3084.9,3084.8,0.29425231]
[1752615840535,3.70439616,3084.9,3084.8,5.49425231]
[1752615840720,4.50753449,3084.9,3084.8,0.29425231]
[1752615842152,5.29303449,3084.9,3084.8,0.29425231]
[1752615842354,8.29303449,3084.9,3084.8,0.29425231]
[1752615842553,0.8218,3084.7,3083.3,3.24320516]
[1752615842758,0.8218,3084.7,3083.1,3.24348869]
[1752615842759,0.8218,3083.7,3082.8,1.18523107]
[1752615843058,3.24313224,3083.5,3082.9,8.73855621]
[1752615843220,0.4328,3083.6,3083.1,0.1616]
[1752615843221,3.87279244,3083.6,3083.1,0.1616]
[1752615843423,3.67588474,3083.5,3083.2,0.29388034]
[1752615843636,0.8239,3083.4,3083.3,0.29392283]
[1752615843837,1.2567,3083.4,3083.3,0.29392283]
[1752615844124,4.49987312,3083.4,3083.3,0.29392283]
[1752615844347,5.63742752,3083.4,3083.3,0.29392283]
[1752615846320,0.03542132,3083.4,3083.3,0.29392283]
[1752615846525,0.975907,3086.2,3083.4,0.03243173]
[1752615846526,0.8087,3084.7,3083.4,0.03243173]
[1752615846827,0.8087,3084.7,3083.8,0.8181]
[1752615847027,0.8087,3084.7,3084.1,3.24233468]
[1752615847258,0.8087,3084.7,3084.2,3.56866892]
[1752615847460,0.8087,3084.7,3084.3,0.29392283]
[1752615847686,0.8087,3084.7,3084.4,0.29392283]
[1752615847837,1.2415,3084.7,3084.5,0.29392283]
[1752615848032,1.2415,3084.7,3084.6,0.29392283]
[1752615848364,4.48330633,3084.7,3084.6,0.29392283]
[1752615848741,5.25880006,3084.7,3084.6,0.29392283]
[1752615849145,1.58419373,3084.7,3084.6,0.29392283]
[1752615849355,0.8087,3084.7,3084.6,0.29392283]
[1752615849658,1.2415,3084.7,3084.6,0.29392283]
[1752615850188,0.002,3086.2,3084.9,0.8246]
[1752615850330,0.002,3086.2,3085.8,3.24065072]
[1752615850534,0.002,3086.2,3085.7,3.24073597]
[1752615850769,3.24040281,3086.1,3085.4,8.47704393]
[1752615850944,3.24040281,3086.1,3085.5,0.29361711]
[1752615851149,3.24040281,3086.1,3085.6,0.29361711]
[1752615851150,3.24033659,3086.1,3085.6,0.29361711]
[1752615851332,3.2422523,3086.2,3085.7,0.29361711]
[1752615851556,0.8203,3085.9,3085.4,5.236]
[1752615851844,0.8203,3085.9,3085.5,0.29339583]
[1752615851845,4.46692196,3085.9,3085.5,0.29339583]
[1752615852041,3.24075574,3085.7,3085.6,0.29339583]
[1752615852430,3.67355574,3085.7,3085.6,0.29339583]
[1752615852650,4.02163587,3085.2,3084.5,8.91522501]
[1752615852826,3.24140807,3085.1,3084.6,0.29341837]
[1752615853030,3.24140807,3085.1,3084.7,0.29341837]
[1752615853282,3.24140807,3085.1,3084.8,0.29341837]
[1752615853578,3.24140807,3085.1,3084.9,0.29341837]
[1752615853750,3.24140807,3085.1,3085.0,0.29341837]
[1752615853936,4.02159409,3085.2,3085.0,0.29341837]
[1752615854131,4.7478636,3085.2,3085.1,0.29341837]
[1752615854541,4.7478636,3085.2,3084.6,0.03241911]
[1752615855152,4.02159409,3085.2,3084.6,0.03241911]
[1752615855471,4.02159409,3085.2,3084.6,3.27431214]
[1752615855649,4.02159409,3085.2,3084.6,0.03241911]
[1752615855846,3.24146281,3085.1,3084.6,0.03241911]
[1752615856054,4.02160688,3085.2,3084.6,0.03241911]
[1752615856355,0.1616,3085.1,3084.6,0.19401911]
[1752615857648,3.24065072,3085.8,3085.1,3.24136028]
[1752615857852,0.1616,3085.7,3085.1,8.62696028]
[1752615858046,0.1616,3085.7,3085.1,9.42156028]
[1752615858568,3.40239914,3085.7,3085.1,9.42156028]
[1752615858873,0.34023991,3085.6,3085.1,9.42156028]
[1752615859243,0.34023991,3085.6,3085.1,6.1802]
[1752615859440,0.34023991,3085.6,3085.1,8.65939138]
[1752615859679,0.34023991,3085.6,3085.1,8.62697752]
[1752615859879,3.58111642,3085.6,3085.1,5.3856]
[1752615860194,3.61524707,3085.5,3085.1,0.19401386]
[1752615860751,0.37427164,3085.5,3085.1,0.19401386]
[1752615861898,3.61526062,3085.5,3085.1,0.19401386]
[1752615862099,0.8316,3085.4,3085.1,0.19401386]
[1752615862787,0.37427164,3085.5,3085.1,0.19401386]
[1752615863159,0.34023991,3085.6,3085.2,0.794]
[1752615863866,0.34023991,3085.6,3085.1,3.88679666]
[1752615864178,3.58111004,3085.6,3085.1,3.43539666]
[1752615864351,0.7785,3085.5,3085.1,0.19401386]
[1752615864547,0.7785,3085.5,3084.7,5.24]
[1752615864548,3.24128095,3085.2,3084.7,5.24]
[1752615864752,3.40288095,3085.2,3084.7,0.1616]
[1752615864993,3.69530788,3085.1,3084.7,0.1616]
[1752615865197,3.24153186,3085.0,3084.7,0.1616]
[1752615865379,3.69543186,3085.0,3084.7,0.1616]
[1752615865557,3.6111426,3084.9,3084.7,0.1616]
[1752615865752,3.24170124,3084.8,3084.7,0.1616]
[1752615866153,3.24170124,3084.8,3084.5,0.1616]
[1752615866374,3.2417388,3084.8,3084.5,0.1616]
[1752615867358,0.36954319,3084.9,3084.5,0.1616]
[1752615867359,3.24182305,3084.7,3084.5,0.1616]
[1752615867901,3.24174185,3084.8,3084.5,0.1616]
[1752615868059,3.24182715,3084.7,3084.5,0.1616]
[1752615868381,3.24191143,3084.6,3084.5,0.1616]
[1752615869976,3.24237412,3084.2,3084.0,5.245]
[1752615870280,3.24237412,3084.2,3084.0,5.4066]
[1752615870457,3.24219641,3084.4,3084.0,5.4066]
[1752615870798,3.24223067,3084.3,3084.0,5.4066]
[1752615871288,0.69375662,3084.5,3084.0,5.4066]
[1752615871592,3.24243701,3084.1,3083.6,0.7737]
[1752615871795,3.24254342,3084.0,3083.7,5.232]
[1752615872284,0.8039,3083.9,3083.6,0.19402962]
[1752615872462,4.04662597,3083.9,3083.6,0.1616]
[1752615872974,4.208153,3083.9,3083.5,0.001]
[1752615873179,4.208153,3083.9,3083.1,0.04]
[1752615873180,0.8039,3083.9,3083.1,0.04]
[1752615873379,3.24308362,3083.5,3083.1,5.4386]
[1752615874168,3.24319832,3083.4,3083.1,5.4386]
[1752615874999,3.24319832,3083.4,3083.1,0.2016]
[1752615875000,3.69712449,3083.4,3083.1,0.2016]
[1752615875158,3.24328323,3083.3,3083.1,0.2016]
[1752615875363,0.4539,3083.4,3083.1,0.2016]
[1752615875604,0.4539,3083.7,3083.1,0.04]
[1752615875820,3.24334153,3083.3,3083.1,0.04]
[1752615876258,3.40481275,3083.4,3083.1,0.04]
[1752615876459,0.6155,3083.4,3083.1,0.04]
[1752615876791,0.7601,3083.3,3083.1,0.04]